[Event "German Bundesliga 2021-22"]
[Site "Germany"]
[Date "2022.04.30"]
[Round "5.5"]
[White "Teclaf, Pawel"]
[Black "L'Ami, Erwin"]
[Result "1/2-1/2"]
[ECO "B38"]
[WhiteElo "2542"]
[BlackElo "2622"]
[Annotator "TA"]
[PlyCount "19"]
[EventDate "2022.03.05"]
[EventType "team-tourn"]
[EventCountry "GER"]
[SourceTitle "playchess.com"]
[Source "ChessBase"]
[SourceQuality "1"]
[TimeControl "40/5400+30:1800+30"]

{[%evp 18,19,47,0]} 1. e4 {[%emt 0:00:00]} c5 {[%emt 0:00:00]} 2. Nf3 {[%emt 0:00:00]} Nc6 {[%emt 0:00:00]} 3. d4 {[%emt 0:00:00]} cxd4 {[%emt 0:00:00]} 4. Nxd4 {[%emt 0:00:00]} g6 {[%emt 0:00:00]} 5. c4 {[%emt 0:04:23]} Bg7 {[%emt 0:00:00]} 6. Be3 {[%emt 0:00:06]} Qb6 {[%emt 0:00:00] [#]} 7. Nb3 $146 {[%emt 0:13:32]} ({Predecessor:} 7. Nb5 Qa5+ 8. N1c3 Nf6 9. f3 O-O 10. Qd2 a6 11. Nd4 d6 12. Be2 Nxd4 13. Bxd4 Be6 14. O-O Rfc8 15. b3 b5 16. cxb5 axb5 {0-1 (24) Kamsky,G (2661)-Abdusattorov,N (2661) Chess.com INT 2022}) 7... Qd8 {[%emt 0:00:00]} 8. Nd4 {[%emt 0:02:24]} Qb6 {[%emt 0:00:00]} 9. Nb3 {[%emt 0:22:10]} Qd8 {[%emt 0:00:00]} 10. Nd4 {[%emt 0:02:40]} (10. Qd2 $14 {deserves consideration.}) 1/2-1/2

[Event "German Bundesliga 2021-22"]
[Site "Germany"]
[Date "2022.04.30"]
[Round "5.5"]
[White "Braeuer, Franz"]
[Black "Ribli, Zoltan"]
[Result "1/2-1/2"]
[ECO "B47"]
[WhiteElo "2428"]
[BlackElo "2529"]
[Annotator "TA"]
[PlyCount "142"]
[EventDate "2022.03.05"]
[EventType "team-tourn"]
[EventCountry "GER"]
[SourceTitle "playchess.com"]
[Source "ChessBase"]
[SourceQuality "1"]
[TimeControl "40/5400+30:1800+30"]

{[%evp 14,142,19,19,26,0,-10,4,-6,7,0,-12,0,-7,12,16,7,11,21,13,16,6,6,6,37,19,29,13,12,13,13,0,69,68,73,69,69,64,67,65,81,59,64,79,122,117,136,136,139,135,154,140,147,142,135,127,127,131,154,150,201,212,195,204,198,186,170,155,155,164,202,209,261,254,336,311,309,294,346,341,358,327,352,218,345,337,358,318,354,352,349,334,309,276,402,381,580,524,725,565,1367,1345,2160,2043,3395,3054,1848,1448,2887,2583,2368,0,0,-29974,5808,5377,2594,1724,2182,0,0,0,0,0,0,0,0,0,0,0,0]} 1. e4 {[%emt 0:00:00]} c5 {[%emt 0:00:00]} 2. Nf3 {[%emt 0:00:00]} e6 {[%emt 0:00:00]} 3. d4 {[%emt 0:00:00]} cxd4 {[%emt 0:00:00]} 4. Nxd4 {[%emt 0:00:00]} Nc6 {[%emt 0:00:00]} 5. Nc3 {[%emt 0:00:00]} Qc7 {[%emt 0:00:00]} 6. g3 {[%emt 0:00:00]} a6 {[%emt 0:00:00]} 7. Bg2 {[%emt 0:00:00]} Nf6 {[%emt 0:00:00]} 8. O-O {[%emt 0:00:00]} h5 {[%emt 0:00:00] 8...Nxd4 is becoming the main line. B47: Sicilian: Taimanov: 5 Nc3 Qc7 6 f4, 6 g3 and 6 Be2.} 9. Re1 {[%emt 0:00:00][%cal Oc3d5]} Nxd4 {[%emt 0:00:00]} 10. Qxd4 {[%emt 0:00:00]} Bc5 {[%emt 0:00:00]} 11. Bf4 {[%emt 0:08:26] And now Qxf6 would win.} d6 $1 {[%emt 0:00:01]} (11... Qb6 12. Qd2 $16) 12. Qd2 {[%emt 0:01:42] e5 is the strong threat.} Ng4 {[%emt 0:01:22] Against e5} 13. Re2 {[%emt 0:08:32][%cal Ob2b4]} Ne5 {[%emt 0:07:46]} (13... e5 $5 {[%cal Re5f4]} 14. Nd5 Qd8 $11) 14. Na4 {[%emt 0:18:38]} Ba7 {[%emt 0:03:52]} 15. b3 {[%emt 0:00:19]} Bd7 {[%emt 0:06:07]} 16. Nb2 $1 {[%emt 0:01:05] [#]} Rd8 $146 {[%emt 0:08:39]} ({Predecessor:} 16... O-O-O 17. Rd1 {½-½ (17) Tiviakov,S (2591)-Alekseev,E (2633) Nakhchivan 2016}) 17. Be3 {[%emt 0:07:50]} Bxe3 {[%emt 0:00:38]} 18. Qxe3 {[%emt 0:00:07]} O-O {[%emt 0:01:20]} 19. Rd2 {[%emt 0:01:16]} Ng4 {[%emt 0:05:17]} 20. Qd4 {[%emt 0:02:58]} Bc6 {[%emt 0:00:13]} 21. Rad1 {[%emt 0:06:28]} d5 {[%emt 0:01:13] Prevents Nc4.} 22. h3 {[%emt 0:05:15]} Nh6 {[%emt 0:14:34]} (22... Nf6 $1 $11) 23. exd5 $14 {[%emt 0:04:17]} Bxd5 {[%emt 0:00:30]} 24. Qh4 {[%emt 0:09:16][%csl LRd5,LRh5]} Nf5 {[%emt 0:04:58][%cal Bh6f5,Bf5e7,Be7d5][%mdl 32]} 25. Qg5 {[%emt 0:00:26][%cal Rg2d5]} (25. Qxh5 Bxg2 26. Rxd8 (26. Kxg2 $2 Rxd2 27. Rxd2 Qe5 $19) 26... Rxd8 $11) 25... Ne7 {[%emt 0:09:11]} 26. Qxh5 {[%emt 0:02:18]} ({Reject} 26. Bxd5 Rxd5 27. Rxd5 Nxd5 $11) 26... Bxg2 {[%emt 0:00:47]} 27. Kxg2 {[%emt 0:03:16]} Rxd2 {[%emt 0:01:23]} 28. Rxd2 {[%emt 0:00:01]} Qc3 {[%emt 0:00:21]} 29. Nc4 {[%emt 0:00:46]} Nd5 {[%emt 0:04:06] [#]} 30. Qe5 $1 {[%emt 0:01:52] Threatens to win with Rxd5.} Qb4 {[%emt 0:00:06]} 31. Rd4 {[%emt 0:01:41]} Rd8 {[%emt 0:02:34]} 32. Rg4 {[%emt 0:05:06][%csl Gg4][%cal Re5g7]} Qf8 {[%emt 0:00:06]} 33. Nd2 $36 {[%emt 0:02:39][%mdl 2048] Keeping Black busy. White is more active.} Nf6 {[%emt 0:01:49]} 34. Qxf6 {[%emt 0:03:00]} Rxd2 $16 {[%emt 0:00:06][%mdl 4096] Endgame KQR-KQR} 35. Qc3 {[%emt 0:01:30]} Rd5 {[%emt 0:03:15]} 36. Rc4 {[%emt 0:05:25]} Qd6 {[%emt 0:02:22]} (36... Qe8 $16 37. h4 Rd8) 37. Rc8+ $18 {[%emt 0:00:15]} ({But not} 37. Rg4 $6 Qf8 38. Rc4 Qe8 $16) 37... Kh7 {[%emt 0:00:06]} 38. Qc7 {[%emt 0:00:11]} Qd7 {[%emt 0:02:56]} 39. Qxd7 {[%emt 0:02:12]} Rxd7 {[%emt 0:00:17] KR-KR} 40. Kf3 {[%emt 0:00:14]} Kg6 {[%emt 0:00:06]} 41. Ke3 {[%emt 0:33:03]} e5 {[%emt 0:30:19]} 42. c4 {[%emt 0:00:00]} f6 {[%emt 0:00:00]} 43. c5 {[%emt 0:00:00]} Kh6 {[%emt 0:00:00]} 44. c6 {[%emt 0:00:00]} bxc6 {[%emt 0:00:00]} 45. Rxc6 {[%emt 0:00:00]} a5 {[%emt 0:00:00]} 46. Rc5 {[%emt 0:00:00] Prevents Rd5.} Ra7 {[%emt 0:00:00]} 47. a4 {[%emt 0:00:00]} Kg6 {[%emt 0:00:00]} 48. Kd3 {[%emt 0:00:00]} Ra8 {[%emt 0:00:00]} (48... Kf5 $142 49. Rb5 Ke6) 49. Ke4 {[%emt 0:00:00]} Ra7 {[%emt 0:00:00]} 50. Rb5 {[%emt 0:00:00]} Ra8 {[%emt 0:00:00]} 51. f4 {[%emt 0:00:00]} exf4 {[%emt 0:00:00]} 52. Kxf4 {[%emt 0:00:00]} Ra7 {[%emt 0:00:00]} 53. h4 {[%emt 0:00:00]} Ra8 {[%emt 0:00:00]} (53... Kf7 {is a better defense.} 54. Kf5 g6+ 55. Kf4 Kg7) 54. Ke4 {[%emt 0:00:00]} Ra7 {[%emt 0:00:00]} (54... Kh6 $142 55. g4 g6) 55. Kd4 {[%emt 0:00:00]} Ra8 {[%emt 0:00:00]} 56. Kc4 {[%emt 0:00:00]} Kh6 {[%emt 0:00:00]} 57. b4 {[%emt 0:00:00]} axb4 {[%emt 0:00:00]} 58. Kxb4 {[%emt 0:00:00]} Re8 {[%emt 0:00:00]} 59. Rc5 {[%emt 0:00:00]} Rb8+ {[%emt 0:00:00]} 60. Kc3 {[%emt 0:00:00]} Rb1 {[%emt 0:00:00]} 61. a5 {[%emt 0:03:39]} Rg1 {[%emt 0:00:00]} 62. a6 $2 {[%emt 0:00:09]} (62. Kb4 $18 {Black must now prevent a6.} Rxg3 63. a6) 62... Ra1 $11 {[%emt 0:00:00]} 63. Rc6 $2 {[%emt 0:00:27][%mdl 8192]} (63. Kd4 $11) 63... Kh5 $4 {[%emt 0:00:00][%mdl 8192]} (63... Rc1+ {avoids the disaster.} 64. Kb4 Rxc6 65. Kb5 {[#]} Rxa6 $3 {[%mdl 512]} 66. Kxa6 Kh5 67. Kb5 Kg4 68. Kc4 Kxg3 69. Kd4 Kxh4 70. Ke3 Kg4 71. Ke2 f5 72. Kf2 f4 73. Kg1 f3 74. Kf1 Kf4 75. Kf2 g5 76. Kf1 g4 77. Kf2 g3+ 78. Kg1 Ke3 79. Kh1 g2+ 80. Kg1 Ke2 81. Kh2 Kf2 82. Kh3 g1=Q 83. Kh4 Qg6 84. Kh3 Qh5#) 64. Kb2 {[%emt 0:03:19]} Ra5 {[%emt 0:00:00]} 65. Kb3 {[%emt 0:00:01] Hoping for Kb4.} Kg4 {[%emt 0:00:00]} 66. Rc4+ $2 {[%emt 0:00:19]} (66. Kb4 $18 Ra1 67. Kb5 Rb1+ 68. Ka5 Ra1+ 69. Kb6) 66... Kxg3 {[%emt 0:00:00] The position is equal.} 67. Ra4 {[%emt 0:00:03]} Rb5+ {[%emt 0:00:00]} 68. Rb4 {[%emt 0:02:21]} (68. Kc2 $5 {[%cal Ra6a7]} Rb8 69. h5 $18 (69. a7 Ra8 $18)) 68... Ra5 {[%emt 0:00:00]} 69. Ra4 {[%emt 0:00:01]} Rb5+ {[%emt 0:00:00]} 70. Rb4 {[%emt 0:03:22]} Ra5 {[%emt 0:00:00]} 71. Ra4 {[%emt 0:00:04]} Rb5+ {[%emt 0:00:00] Never resign too early!  Weighted Error Value: White=0.11 (very precise) /Black=0.27 (precise)} 1/2-1/2

[Event "German Bundesliga 2021-22"]
[Site "Germany"]
[Date "2022.04.30"]
[Round "5.6"]
[White "Warmerdam, Max"]
[Black "Parvanyan, Ashot"]
[Result "1-0"]
[ECO "E97"]
[WhiteElo "2607"]
[BlackElo "2462"]
[Annotator "TA"]
[PlyCount "71"]
[EventDate "2022.03.05"]
[EventType "team-tourn"]
[EventCountry "GER"]
[SourceTitle "playchess.com"]
[Source "ChessBase"]
[SourceQuality "1"]
[TimeControl "40/5400+30:1800+30"]

{[%evp 21,71,30,61,24,38,41,124,53,100,87,102,50,80,77,100,58,58,55,115,108,100,106,88,67,82,64,75,91,87,76,75,45,33,41,53,43,46,23,18,15,143,152,199,192,179,141,420,428,425,421,399,243]} 1. c4 {[%emt 0:00:00]} Nf6 {[%emt 0:00:00]} 2. Nc3 {[%emt 0:00:00]} g6 {[%emt 0:00:00]} 3. e4 {[%emt 0:00:00]} d6 {[%emt 0:00:00]} 4. d4 {[%emt 0:00:00][%cal Bd2d4,Bd4d5][%mdl 32]} Bg7 {[%emt 0:00:00]} 5. Nf3 {[%emt 0:00:00]} O-O {[%emt 0:00:00]} 6. Be2 {[%emt 0:00:00]} e5 {[%emt 0:00:00]} 7. O-O {[%emt 0:00:00]} Nc6 {[%emt 0:00:00]} 8. d5 {[%emt 0:00:00]} Ne7 {[%emt 0:00:00]} 9. b4 {[%emt 0:00:00]} a5 {[%emt 0:00:00]} 10. bxa5 $1 {[%emt 0:00:00][%mdl 4] outshines the older 10.Ba3.} Nh5 {[%emt 0:06:12]} 11. Re1 {[%emt 0:00:00]} f5 {[%emt 0:03:26]} 12. a4 {[%emt 0:04:57][%cal Oc4c5] E97: King's Indian: Classical Main Line (6...e5 7 0-0 Nc6): 8 Be3 and 8 d5 Ne7, not 9 Ne1.} Nf4 {[%emt 0:11:22]} 13. Bf1 {[%emt 0:02:16][%cal Oc4c5]} h6 {[%emt 0:00:18]} (13... Rxa5 $14 14. Qb3 fxe4 15. Nxe4 Bg4) 14. Ra3 {[%emt 0:12:24]} (14. Bxf4 $16 exf4 15. e5) 14... g5 {[%emt 0:06:01]} (14... Rxa5 $14 15. exf5 Nxf5) 15. Nd2 {[%emt 0:02:56][%cal Oc4c5]} Rxa5 {[%emt 0:03:32] [#]} 16. Bb2 $146 {[%emt 0:08:01]} (16. g3 $16) ({Predecessor:} 16. g3 Nfg6 17. exf5 Bxf5 18. Nce4 b6 19. Nb3 Ra7 20. a5 Qa8 21. Nc3 Bd7 22. Ne4 {0-1 (48) Mahjoob,M (2519)-Moghaddamian A,A (2202) Tabriz 2011}) 16... b6 {[%emt 0:12:39]} 17. Nb5 {[%emt 0:03:15]} Ra8 {[%emt 0:03:34]} 18. Qa1 {[%emt 0:07:11]} Bd7 {[%emt 0:04:21]} 19. g3 {[%emt 0:05:27]} Nfg6 {[%emt 0:02:56]} (19... Nh5 $1 $14) 20. a5 $16 {[%emt 0:00:42]} bxa5 {[%emt 0:04:16]} 21. Rxa5 {[%emt 0:01:23]} Rb8 {[%emt 0:00:47]} 22. c5 {[%emt 0:28:27]} dxc5 {[%emt 0:05:57]} 23. Nc3 {[%emt 0:01:22] 0x0.001ae9bbc497dp-1022s more active pieces.} f4 {[%emt 0:03:49]} 24. Ba3 {[%emt 0:00:59]} (24. Rxc5 Nc8 $11) 24... Nc8 {[%emt 0:03:32]} 25. Bxc5 {[%emt 0:00:38]} Nd6 {[%emt 0:02:02]} 26. Ra7 {[%emt 0:00:13]} Rf7 {[%emt 0:03:43]} 27. Rb1 {[%emt 0:06:58]} Rxb1 {[%emt 0:00:45]} 28. Ncxb1 {[%emt 0:00:09] [#] Bxd6 is the strong threat.} ({Resist} 28. Qxb1 Bf8 $16) 28... Bf8 {[%emt 0:02:07]} 29. Qa5 {[%emt 0:02:05] Strongly threatening Bxd6.} (29. Ra8 $5 {[%cal Ra8d8]} Qf6 30. Qa7 $16) 29... Bc8 {[%emt 0:03:36]} 30. Qb4 {[%emt 0:02:26] Against Nb7} Qf6 {[%emt 0:10:05] [#]} (30... h5 $11 {remains equal.}) 31. Qb8 $1 $36 {[%emt 0:00:46][%mdl 2048] White is on the roll.} Ne8 {[%emt 0:01:52]} (31... fxg3 $16 32. hxg3 Ne8) 32. Qxc8 $18 {[%emt 0:09:09]} Bxc5 {[%emt 0:00:28]} 33. Qxe8+ {[%emt 0:00:26]} Nf8 $2 {[%emt 0:02:21][%mdl 8192]} (33... Rf8 $16 34. Ra6 Bxf2+ 35. Kg2 Bb6 36. Qe6+ Qxe6 37. dxe6 fxg3 38. hxg3 (38. Kxg3 Bf2+ 39. Kg2 Bb6 $18) 38... Kg7) 34. Ra6 {[%emt 0:00:10]} Bxf2+ {[%emt 0:02:17]} 35. Kh1 {[%emt 0:00:42]} Bb6 {[%emt 0:00:11]} 36. Qc6 {[%emt 0:00:13] Weighted Error Value: White=0.15 (very precise) /Black=0.37} 1-0

[Event "German Bundesliga 2021-22"]
[Site "Germany"]
[Date "2022.04.30"]
[Round "5.6"]
[White "Stark, Lars"]
[Black "Grigorian, Spartak"]
[Result "1/2-1/2"]
[ECO "A34"]
[WhiteElo "2386"]
[BlackElo "2477"]
[Annotator "TA"]
[PlyCount "49"]
[EventDate "2022.03.05"]
[EventType "team-tourn"]
[EventCountry "GER"]
[SourceTitle "playchess.com"]
[Source "ChessBase"]
[SourceQuality "1"]
[TimeControl "40/5400+30:1800+30"]

{[%evp 14,49,16,0,0,0,9,0,30,39,43,-21,-10,0,0,-33,49,50,43,53,49,62,62,71,108,57,54,54,54,46,62,58,82,29,16,0,137,114]} 1. c4 {[%emt 0:00:00] Marin,M} Nf6 {[%emt 0:00:00]} 2. g3 {[%emt 0:00:00]} c5 {[%emt 0:00:00]} 3. Bg2 {[%emt 0:00:00]} d5 {[%emt 0:00:00]} 4. cxd5 {[%emt 0:00:00]} Nxd5 {[%emt 0:00:00]} 5. Nc3 {[%emt 0:00:00]} Nc7 {[%emt 0:00:00]} 6. Nf3 {[%emt 0:00:00]} Nc6 {[%emt 0:00:00]} 7. O-O {[%emt 0:00:00]} e5 {[%emt 0:00:00]} 8. a3 {[%emt 0:00:00][%cal Ob2b4]} Rb8 {[%emt 0:00:00] A34: Symmetrical English: 2 Nc3, lines with ...d5.} 9. Rb1 {[%emt 0:00:00][%cal Ob2b4]} Be7 {[%emt 0:03:04]} 10. d3 {[%emt 0:04:32][%cal Ob2b4]} b5 {[%emt 0:09:01] The position is equal.} 11. Be3 {[%emt 0:02:19]} O-O {[%emt 0:08:59]} 12. b4 {[%emt 0:07:58]} (12. Rc1 $14) 12... cxb4 $11 {[%emt 0:02:30]} 13. axb4 {[%emt 0:00:39]} Bb7 {[%emt 0:01:10]} 14. Qd2 {[%emt 0:08:14] [#]} f5 $146 {[%emt 0:14:59] [#]} (14... Re8 $15) ({Predecessor:} 14... Re8 15. Ne4 Na6 16. Rfc1 Ba8 17. Nc5 Nxc5 18. Bxc5 e4 19. dxe4 Bxc5 20. Rxc5 Rxe4 {½-½ (38) Svidler,P (2753)-Karjakin,S (2771) Stavanger 2014 CBM 161 [Marin,M]}) 15. Bxa7 $1 $14 {[%emt 0:13:04]} Nxa7 {[%emt 0:10:36]} 16. Qa2+ {[%emt 0:00:12]} Kh8 $1 {[%emt 0:00:48] And now ...Nc6 would win.} 17. Qxa7 {[%emt 0:00:10]} Bf6 {[%emt 0:13:15]} 18. Rfd1 {[%emt 0:14:36]} Qe8 {[%emt 0:06:34]} 19. Rbc1 {[%emt 0:11:58]} ({Better is} 19. e4 $16) 19... Na6 {[%emt 0:15:52]} 20. e4 {[%emt 0:01:47]} Nxb4 {[%emt 0:03:15]} 21. exf5 {[%emt 0:07:56]} Qh5 {[%emt 0:00:42]} 22. Ne4 {[%emt 0:03:04]} Ba8 {[%emt 0:09:04]} 23. Qa3 {[%emt 0:23:52] 0x0.001b80352ddadp-1022s more active pieces.} (23. Qc5 $16 Nd5 24. Nxf6 gxf6 25. Nxe5 $1) 23... Nd5 $11 {[%emt 0:01:11]} 24. d4 {[%emt 0:00:36]} ({But not} 24. Nxf6 gxf6 25. Qc5 {[#]} Nf4 $1 26. gxf4 Bxf3 27. Bxf3 Qxf3 28. fxe5 Rg8+ 29. Kf1 Rg2 $17) 24... exd4 {[%emt 0:00:37]} (24... b4 $11 {remains equal.} 25. Qd3 Qxf5) 25. Nxf6 {[%emt 0:00:37] Weighted Error Value: White=0.16 (very precise) /Black=0.28 (precise)} 1/2-1/2

[Event "German Bundesliga 2021-22"]
[Site "Germany"]
[Date "2022.04.30"]
[Round "5.6"]
[White "Schneider, Stefan"]
[Black "Schmittdiel, Eckhard"]
[Result "1/2-1/2"]
[ECO "E16"]
[WhiteElo "2366"]
[BlackElo "2402"]
[Annotator "TA"]
[PlyCount "55"]
[EventDate "2022.03.05"]
[EventType "team-tourn"]
[EventCountry "GER"]
[SourceTitle "playchess.com"]
[Source "ChessBase"]
[SourceQuality "1"]
[TimeControl "40/5400+30:1800+30"]

{[%evp 17,55,25,39,27,49,50,48,49,44,52,37,36,42,5,37,39,37,10,39,36,36,36,37,41,45,10,50,52,23,26,29,16,27,0,11,0,0,0,0,0]} 1. d4 {[%emt 0:00:00]} Nf6 {[%emt 0:00:00]} 2. c4 {[%emt 0:00:00]} e6 {[%emt 0:00:00]} 3. Nf3 {[%emt 0:00:00]} b6 {[%emt 0:00:00]} 4. g3 {[%emt 0:00:00]} Bb7 {[%emt 0:00:00]} 5. Bg2 {[%emt 0:00:00]} Bb4+ {[%emt 0:00:00]} 6. Bd2 {[%emt 0:00:00]} Bxd2+ {[%emt 0:00:00]} 7. Qxd2 {[%emt 0:02:02]} d6 {[%emt 0:00:00]} 8. O-O {[%emt 0:02:50]} O-O {[%emt 0:00:00]} 9. Nc3 {[%emt 0:03:45] 9.Qf4 is more advanced technology.} Nbd7 {[%emt 0:00:00]} 10. d5 {[%emt 0:22:25] has lost popularity (10.Qc2). E16: Queen's Indian: 4 g3 Bb7 5 Bg2 Bb4+.} e5 {[%emt 0:07:04]} 11. Qc2 {[%emt 0:16:38]} Qe7 {[%emt 0:06:39]} 12. e4 {[%emt 0:06:48] White is slightly better.} c6 {[%emt 0:01:04] [#]} 13. Nh4 $146 {[%emt 0:05:28] Threatens to win with dxc6.} ({Predecessor:} 13. dxc6 Bxc6 14. b4 Rac8 15. Qd3 Rfd8 16. Nd2 Nf8 17. Rfc1 Rc7 18. Nd5 Bxd5 19. cxd5 Rdc8 {½-½ (31) Lou,Y (2443)-Liu,Y (2413) Zaozhuang 2015}) 13... g6 {[%emt 0:00:56]} 14. dxc6 {[%emt 0:02:03]} Bxc6 {[%emt 0:00:21]} 15. b4 {[%emt 0:00:16]} Rac8 {[%emt 0:01:17]} 16. Qd3 {[%emt 0:04:43]} Rfd8 {[%emt 0:00:34]} 17. Bh3 {[%emt 0:06:39]} Rc7 {[%emt 0:00:21]} 18. Rfc1 {[%emt 0:04:56]} Nf8 {[%emt 0:13:54]} 19. Nd5 {[%emt 0:04:10]} Nxd5 {[%emt 0:08:56]} 20. cxd5 {[%emt 0:00:04]} Be8 {[%emt 0:01:04]} 21. Qe3 {[%emt 0:05:45]} Rb8 {[%emt 0:00:59]} 22. Rxc7 {[%emt 0:04:39]} Qxc7 {[%emt 0:00:16]} 23. Rc1 {[%emt 0:00:03]} Qd8 {[%emt 0:01:28]} 24. a3 {[%emt 0:03:36]} a5 {[%emt 0:00:34]} 25. Qd2 {[%emt 0:01:13]} axb4 {[%emt 0:00:37] The position is equal.} 26. axb4 {[%emt 0:03:42]} Ra8 {[%emt 0:00:09]} 27. Ng2 {[%emt 0:00:54]} Nd7 {[%emt 0:01:23]} 28. Ne3 {[%emt 0:01:00] Weighted Error Value: White=0.09 (flawless) /Black=0.08 (flawless)} 1/2-1/2

[Event "German Bundesliga 2021-22"]
[Site "Germany"]
[Date "2022.04.30"]
[Round "5.7"]
[White "Markgraf, Alexander"]
[Black "Heinz, Timothee"]
[Result "1-0"]
[ECO "C11"]
[WhiteElo "2482"]
[BlackElo "2374"]
[Annotator "TA"]
[PlyCount "101"]
[EventDate "2022.03.05"]
[EventType "team-tourn"]
[EventCountry "GER"]
[SourceTitle "playchess.com"]
[Source "ChessBase"]
[SourceQuality "1"]
[TimeControl "40/5400+30:1800+30"]

{[%evp 24,101,31,28,22,26,38,18,20,0,27,19,34,12,12,14,27,10,27,18,19,19,26,0,28,14,80,80,80,80,127,127,122,116,111,99,130,129,110,0,0,0,72,73,251,236,188,0,188,188,175,129,186,193,159,175,327,327,327,327,327,327,356,370,667,654,691,704,704,704,695,644,646,657,475,609,1067,1057,29994,29995]} 1. e4 {[%emt 0:00:00][%cal Be2e4,Be4e5][%mdl 32]} e6 {[%emt 0:00:00]} 2. d4 {[%emt 0:00:00]} d5 {[%emt 0:00:00]} 3. Nc3 {[%emt 0:00:00]} Nf6 {[%emt 0:00:00]} 4. e5 {[%emt 0:00:00]} Nfd7 {[%emt 0:00:00]} 5. f4 {[%emt 0:00:00]} c5 {[%emt 0:00:00]} 6. Nf3 {[%emt 0:00:00]} Nc6 {[%emt 0:00:00]} 7. Be3 {[%emt 0:00:00]} cxd4 {[%emt 0:00:00]} 8. Nxd4 {[%emt 0:00:00]} Bc5 {[%emt 0:00:00]} 9. Qd2 {[%emt 0:00:00]} Bxd4 {[%emt 0:00:00]} 10. Bxd4 {[%emt 0:00:00]} Nxd4 {[%emt 0:00:00]} 11. Qxd4 {[%emt 0:00:00]} Qb6 {[%emt 0:00:00]} 12. Qxb6 {[%emt 0:00:00]} Nxb6 {[%emt 0:00:00]} 13. O-O-O {[%emt 0:00:00]} Bd7 {[%emt 0:00:00] C11: French: Classical System: 4 e5 and 4 Bg5 dxe4.} 14. Bd3 {[%emt 0:00:00]} h5 {[%emt 0:00:00]} 15. h4 {[%emt 0:06:36]} g6 {[%emt 0:01:35] The position is equal.} 16. Ne2 {[%emt 0:07:31] [#]} Nc8 $146 {[%emt 0:02:36]} ({Predecessor:} 16... Ke7 17. Nd4 Rac8 {½-½ (17) Stupak,K (2503)-Lintchevski,D (2575) Krakow 2012}) 17. Nd4 {[%emt 0:24:28]} Ne7 {[%emt 0:03:53]} 18. b3 {[%emt 0:22:49]} a6 {[%emt 0:02:36]} 19. Kb2 {[%emt 0:00:36]} Nc6 {[%emt 0:00:35]} 20. Nf3 {[%emt 0:00:53]} Ke7 {[%emt 0:01:03]} 21. c3 {[%emt 0:03:43]} Rhc8 {[%emt 0:15:34]} 22. Rd2 {[%emt 0:03:28]} Rc7 {[%emt 0:02:57]} 23. a3 {[%emt 0:02:11]} a5 {[%emt 0:14:58]} 24. Rc1 {[%emt 0:02:40][%cal Bh1c1,Bc1c4,Bc4d4][%mdl 32]} b6 {[%emt 0:01:27]} (24... Na7 $11 {keeps the balance.}) 25. c4 $1 $16 {[%emt 0:06:15]} dxc4 {[%emt 0:11:52]} 26. Rxc4 {[%emt 0:00:11] Nd4 is the strong threat.} Rcc8 {[%emt 0:01:15]} (26... Rac8 $142) 27. Be4 {[%emt 0:01:27]} Rab8 {[%emt 0:00:29]} 28. Ng5 {[%emt 0:07:39][%cal Og5f7,Bf3g5,Bg5h7,Bh7f6,Bf6g8][%mdl 32]} Nd8 {[%emt 0:06:26]} 29. Rcd4 {[%emt 0:00:28] 0x0.001aea294d68dp-1022s more active pieces. The black rooks are badly placed.} Rc7 {[%emt 0:02:30]} 30. Nh7 {[%emt 0:04:00] aiming for Nf6.} Nb7 {[%emt 0:12:22]} 31. b4 {[%emt 0:02:57] Inhibits Nc5.} (31. Bxb7 $16 Rcxb7 32. Nf6) 31... axb4 $11 {[%emt 0:02:00]} 32. axb4 {[%emt 0:00:06][%cal Od4d6] Strongly threatening Rd6! Chess con chili.} Bb5 {[%emt 0:03:04]} (32... Nc5 $1 $11) 33. Nf6 $16 {[%emt 0:00:34][%cal Od4d6] And now Rd6! would win.} Nd8 $2 {[%emt 0:03:58]} (33... Rd8 $16) 34. Ng8+ $18 {[%emt 0:00:39]} Ke8 {[%emt 0:00:01]} 35. Nf6+ {[%emt 0:00:12]} Ke7 {[%emt 0:00:03]} 36. Bd3 {[%emt 0:05:49]} Bc6 {[%emt 0:11:59]} 37. Bf1 {[%emt 0:02:09]} (37. Rd6 $18) 37... Ra7 {[%emt 0:01:07] [#]} (37... b5 $16 {was necessary.}) 38. b5 $1 {[%emt 0:00:18]} Bd5 {[%emt 0:00:28] [#]} 39. Bc4 $1 $36 {[%emt 0:01:05][%mdl 2048] White is in control.} ({Don't take} 39. Nxd5+ $6 exd5 40. Rxd5 Ne6 $14) 39... Bxc4 $2 {[%emt 0:03:18]} (39... Ra5 {was worth a try.} 40. Kc3 (40. Nxd5+ exd5 41. Rxd5 Rc8 $16) 40... Ra3+ 41. Kb2 Ra5 42. Bxd5 (42. Nxd5+ exd5 43. Rxd5 Rc8 $16) 42... exd5) 40. Rxc4 {[%emt 0:00:13]} Rba8 {[%emt 0:00:05]} 41. Kc2 {[%emt 0:08:07]} Ra2+ {[%emt 0:02:06]} 42. Kd1 {[%emt 0:00:12]} Rxd2+ {[%emt 0:00:35]} 43. Kxd2 {[%emt 0:00:05][%mdl 4096] Endgame KRN-KRN} Ra7 $2 {[%emt 0:00:12]} (43... Kf8 44. Rc7 (44. Nd7+ Kg7 $18) 44... Ra2+ 45. Kc3 Kg7) 44. Rc8 {[%emt 0:05:00]} Rb7 {[%emt 0:00:43]} 45. Kc3 {[%emt 0:00:35]} Ra7 {[%emt 0:00:26]} 46. Kb4 {[%emt 0:00:43]} Rb7 {[%emt 0:01:32]} 47. Rc2 {[%emt 0:00:49]} Ra7 {[%emt 0:00:53]} 48. Rd2 {[%emt 0:01:28]} Rc7 {[%emt 0:01:59]} 49. Rd6 {[%emt 0:01:00]} Nb7 {[%emt 0:00:33]} 50. Rxb6 {[%emt 0:00:48]} Nc5 {[%emt 0:00:04]} 51. Rb8 {[%emt 0:00:42] Weighted Error Value: White=0.13 (very precise) /Black=0.57} 1-0